Cogmind - Beta 17.1 @@@ ROGUE MODE // 2026.09.18 @ 16:25:45 Player: aihara Result: Destroyed by D2-Q03(R) with Subdweller Machine Gun Performance ------------- Evolutions (0) 0 Regions Visited (3) 600 Robots Destroyed (22) 110 Value Destroyed (568) 568 Prototype IDs (0) 0 Alien Tech Used (0) 0 Bonus (0) 0 TOTAL SCORE: 1278 Bonus ------- None Cogmind --------- Core Integrity 0/250 Matter 269/300 Energy 98/100 System Corruption 0% Temperature Cool (1) Movement Walking (120) Location -10/Subcaves Parts ------- > --- POWER (1) -------- (None) > --- PROPULSION (2) --- Aluminum Leg > --- UTILITY (2) ------ Medium Storage Unit Weight Redist. System > --- WEAPON (2) ------- Subdweller Machine Gun > --- INVENTORY (10) --- Light Ion Engine Light Treads Cooling System Targeting Computer Peak State ------------ > --- POWER ------------ Ion Engine > --- PROPULSION ------- Aluminum Leg Aluminum Leg > --- UTILITY ---------- Medium Storage Unit Weight Redist. System > --- WEAPON ----------- EM Pulse Gun Particle Cannon > --- INVENTORY -------- Light Ion Engine Light Treads Aluminum Leg Hover Unit Hover Unit Cooling System Targeting Computer EM Pulse Gun EM Pulse Gun [Rating: 10] Favorites ----------- Power Ion Engine Engine Ion Engine Propulsion Aluminum Leg Treads Light Treads Leg Aluminum Leg Utility Weight Redist. System Device Weight Redist. System Storage Small Storage Unit Protection Utility Shielding Weapon Particle Cannon Energy Gun EM Pulse Gun Energy Cannon Particle Cannon Ballistic Gun Light Assault Rifle Ballistic Cannon Light Cannon Launcher Grenade Launcher Special Weapon Flamer Build | -11 -10 -10 -10 ------- Run | Yrd Mat Min Sub Slots Evolved . | . . . . Power . | . . . . Propulsion . | . . . . Utility . | . . . . Weapon . | . . . . Parts Attached 26 | 7 11 3 5 Power 2 | 1 1 . . Engine 2 | 1 1 . . Core . | . . . . Reactor . | . . . . Propulsion 7 | 2 2 2 1 Treads 2 | . 2 . . Leg 5 | 2 . 2 1 Wheel . | . . . . Hover . | . . . . Flight . | . . . . Utility 6 | 1 4 1 . Device 2 | . 2 . . Storage 3 | 1 1 1 . Processor . | . . . . Hackware . | . . . . Protection 1 | . 1 . . Artifact . | . . . . Weapon 11 | 3 4 . 4 Energy Gun 4 | 1 1 . 2 Energy Cannon 1 | . 1 . . Ballistic Gun 3 | 2 . . 1 Ballistic Cannon 1 | . 1 . . Launcher 1 | . 1 . . Special Weapon 1 | . . . 1 Impact Weapon . | . . . . Slashing Weapon . | . . . . Piercing Weapon . | . . . . Special Melee Weapon . | . . . . Unidentified Prototypes . | . . . . Parts Lost 13 | . 5 . 8 Power 2 | . 1 . 1 Propulsion 3 | . 1 . 2 Utility 1 | . 1 . . Weapon 7 | . 2 . 5 Highest Loss Streak 3 | . 2 . 3 To Critical Strikes . | . . . . Average Backups 6 | 3 6 7 5 Power 1 | . 1 . 1 Propulsion 3 | 2 4 3 1 Utility 1 | . . 1 2 Weapon 1 | . 1 2 1 Tool/Special . | . . . . Unused Backups 10 | . 4 3 3 Power 2 | . . 1 1 Propulsion 4 | . 2 2 . Utility 2 | . . . 2 Weapon 2 | . 2 . . Tool/Special . | . . . . Average Slot Usage (%) 97 | . 96 100 94 Engine 13 | . 13 14 13 Treads 13 | . 18 13 . Leg 14 | . 8 14 27 Device 10 | . 7 14 14 Storage 15 | . 16 14 14 Energy Gun 12 | . 11 14 11 Energy Cannon 10 | . 10 14 7 Ballistic Gun 2 | . 3 . 1 Peak Build Rating 10 | 6 9 10 10 Average Rating 8 | 4 8 9 8 On Entrance 6 | . 6 9 10 Avg Prop Armor Cover (%) . | . . . . Naked Turns . | . . . . Heaviest Build 21 | 12 16 21 21 Greatest Support 46 | 20 46 46 26 Greatest Overweight (x) 2 | 2 1 . 1 Average Overweight (x) . | . . . . Largest Inventory Capacity 10 | 8 8 10 10 Average Capacity 8 | 6 8 9 10 Most Carried 10 | 6 8 10 10 Average Carried 7 | 3 6 8 7 Final Capacity 10 | 8 8 10 10 Final Carried 10 | 6 8 10 4 Class Distribution -------------------- 100% | Mutant Dominant Class ---------------- Mutant | -10/Materials Mutant | -10/Mines Mutant | -10/Subcaves Resources | -11 -10 -10 -10 ----------- Run | Yrd Mat Min Sub Matter Collected 504 | 177 272 40 15 Remotely . | . . . . Salvage Created 628 | . 365 95 168 Parts 37 | . 16 12 9 Haulers Intercepted . | . . . . Recyclers Shooed 1 | . 1 . . Parts Field Recycled . | . . . . Retrieved Matter . | . . . . Parts Self-Destructed 2 | . . . 2 Prevented . | . . . . Parts Restored . | . . . . Kills | -11 -10 -10 -10 ------- Run | Yrd Mat Min Sub Combat Hostiles Destroyed 20 | . 10 6 4 Guns 12 | . 5 5 2 Cannons 6 | . 5 1 . AOE 1 | . . . 1 Classes Destroyed 5 | . 4 . 1 Builder 1 | . 1 . . Watcher 1 | . 1 . . Swarmer 9 | . 3 6 . Grunt 7 | . 7 . . Subdweller 4 | . . . 4 Best Kill Streak 3 | . 3 3 3 Combat Bots Only 3 | . 3 3 3 Max Kills in Single Turn 1 | . 1 1 1 Gunslinging . | . . . . Exploded 1 | . . . 1 Melee . | . . . . Uniques/NPCs Destroyed . | . . . . Combat | -11 -10 -10 -10 -------- Run | Yrd Mat Min Sub Hostile Shots Fired 154 | . 73 31 50 Missed 54 | . 21 12 21 Hits 100 | . 52 19 29 Projectile 100 | . 52 19 29 Critical Strikes 1 | . 1 . . Damage Taken 1409 | . 633 140 636 Core 261 | . 112 20 129 Absorbed by Shields . | . . . . Core Remaining (%) 100 | 100 . . . Volleys Fired 79 | . 38 11 30 Largest 2 | . 2 2 2 Hottest 130 | . 108 108 130 Shots Fired 129 | . 68 22 39 Gun 87 | . 41 11 35 Cannon 38 | . 24 11 3 Launcher 3 | . 3 . . Special 1 | . . . 1 Kinetic 35 | . 22 . 13 Thermal 58 | . 43 11 4 Explosive 3 | . 3 . . Electromagnetic 33 | . . 11 22 Robot Hit Streak 8 | . 5 6 8 Robot Miss Streak 4 | . 4 3 3 Penetration Max . | . . . . Secondary Targets . | . . . . Shots Hit Robots 74 | . 39 9 26 Core Hits 33 | . 21 6 6 Critical Kills . | . . . . Critical Parts Destroyed . | . . . . Critical Strikes 2 | . 1 . 1 Destroy 1 | . . . 1 Blast 1 | . 1 . . Melee Attacks . | . . . . Impact . | . . . . Slashing . | . . . . Piercing . | . . . . Sneak Attacks . | . . . . Combat Hostiles . | . . . . Follow-up Attacks . | . . . . Damage Inflicted 1321 | . 729 131 461 Guns 638 | . 229 86 323 Cannons 323 | . 261 42 20 Explosions 343 | . 236 . 107 Melee . | . . . . Ramming 6 | . 3 3 . Kinetic 238 | . 88 . 150 Thermal 582 | . 402 42 138 Explosive 236 | . 236 . . Electromagnetic 259 | . . 86 173 Impact . | . . . . Slashing . | . . . . Piercing . | . . . . Highest Corruption . | . . . . Average Corruption . | . . . . Corruption Purged . | . . . . Corruption Blocked . | . . . . Overload Shots . | . . . . Overflow Damage 11 | . 11 . . Projectiles . | . . . . Explosions 11 | . 11 . . Melee . | . . . . Knockbacks . | . . . . Impact . | . . . . Kinetic . | . . . . Secondary . | . . . . Self-Inflicted Damage . | . . . . Shots . | . . . . Rammed 1 | . 1 . . Targets Rammed 2 | . 1 1 . Kicked 1 | . . 1 . Crushed . | . . . . Highest Temperature 270 | . 270 240 . Average Temperature 87 | . 85 90 . Received Heat Transfer 306 | . 267 . 39 Siege Activations . | . . . . Martial Activations . | . . . . Shielding Activations . | . . . . Robots Disrupted . | . . . . Combat Hostiles . | . . . . Robots Corrupted 1 | . . . 1 Combat Hostiles 1 | . . . 1 Parts Fried 3 | . 1 . 2 Impact Corruptions . | . . . . Robots Melted . | . . . . Combat Hostiles . | . . . . Parts Melted . | . . . . Heat Transferred 1085 | . 794 74 217 Parts Sabotaged . | . . . . Parts Stolen . | . . . . Parts Stripped . | . . . . Power Chain Reactions 2 | . . . 2 Alert | -11 -10 -10 -10 ------- Run | Yrd Mat Min Sub Maximum Alert Level . | . . . . Low Security (%) 100 | 100 100 100 . Level 1 . | . . . . Level 2 . | . . . . Level 3 . | . . . . Level 4 . | . . . . Level 5 . | . . . . High Security . | . . . . Max Security . | . . . . Peak Influence 98 | . 98 60 . Initial . | . . . . Average 17 | . 22 11 . Influence Increases 501 | . 340 161 . Destroy 0b10 Robot/C 320 | . 200 120 . Destroy 0b10 Robot/NC 10 | . 10 . . Destroy Leader 62 | . 42 20 . Trap Triggered on 0b10 10 | . 10 . . Successful Hack 37 | . 16 21 . Disable Machine 30 | . 30 . . Destroy Structure 17 | . 17 . . Lose Combat Pursuer 15 | . 15 . . Influence Decreases 501 | . 340 161 . Time Decay 451 | . 290 161 . Lost Part 50 | . 50 . . Squads Dispatched 1 | . . 1 . Investigation 1 | . . 1 . Extermination . | . . . . Reinforcement . | . . . . Assault . | . . . . Garrison . | . . . . Intercept . | . . . . Searches Triggered . | . . . . Construction Impeded . | . . . . Haulers Reinforced . | . . . . Active Scanning Responses . | . . . . Cargo Convoy Interrupts . | . . . . Stealth | -11 -10 -10 -10 --------- Run | Yrd Mat Min Sub Distress Signals 1 | . 1 . . Communications Jammed . | . . . . Distress Signals . | . . . . Times Spotted 35 | . 18 6 11 Peak Tracking Total 8 | . 4 3 8 Tactical Retreats 3 | . 1 . 2 Traps | -11 -10 -10 -10 ------- Run | Yrd Mat Min Sub Traps Triggered 2 | . 2 . . Indirectly . | . . . . Trap Hack Attempts . | . . . . Triggered . | . . . . Disarmed . | . . . . Reprogrammed 6 | . 6 . . Reused 4 | . 1 . 3 Traps Extracted . | . . . . Installed 3 | . . . 3 Triggered 1 | . 1 . . Most Traps Carried 3 | . . 3 3 Machines | -11 -10 -10 -10 ---------- Run | Yrd Mat Min Sub Machines Disabled 2 | . 2 . . Max in Single Turn 1 | . 1 . . Machines Repaired . | . . . . Machines Dismantled . | . . . . Machines Sabotaged . | . . . . Overloaded Fab Kills . | . . . . Hacking | -11 -10 -10 -10 --------- Run | Yrd Mat Min Sub Machines Accessed 7 | . 6 1 . Terminals 5 | . 4 1 . Fabricators . | . . . . Repair Stations . | . . . . Recycling Units 2 | . 2 . . Scanalyzers . | . . . . Garrison Access . | . . . . Total Hacks 25 | . 18 7 . Successful 12 | . 7 5 . Failed 13 | . 11 2 . Catastrophic 2 | . 2 . . Database Lockouts . | . . . . Manual 1 | . . 1 . Terminals 19 | . 12 7 . Fabricators . | . . . . Repair Stations . | . . . . Recycling Units 6 | . 6 . . Scanalyzers . | . . . . Garrison Access . | . . . . Terminal Hacks 10 | . 5 5 . Record 2 | . . 2 . Emergency Access Points 1 | . 1 . . Locate Traps 1 | . 1 . . Reprogram Traps 1 | . 1 . . Investigation Status 1 | . . 1 . Recall Investigation 1 | . . 1 . Hauler Manifests 1 | . 1 . . Registered Components 1 | . 1 . . Zone Layout 1 | . . 1 . Fabricator Hacks . | . . . . Repair Station Hacks . | . . . . Recycling Unit Hacks 2 | . 2 . . Retrieve Components 2 | . 2 . . Scanalyzer . | . . . . Garrison Access Hacks . | . . . . Unauthorized Hacks . | . . . . Terminals . | . . . . Fabricators . | . . . . Repair Stations . | . . . . Recycling Units . | . . . . Scanalyzers . | . . . . Garrison Access . | . . . . Data Cores Recovered . | . . . . Used . | . . . . Hacking Detections 7 | . 6 1 . Full Trace Events 4 | . 3 1 . Feedback Events . | . . . . Feedback Blocked . | . . . . Robot Schematics Acquired . | . . . . Robots Built . | . . . . Authchips . | . . . . Time . | . . . . Total Robot Build Rating . | . . . . Part Schematics Acquired . | . . . . Parts Built . | . . . . Authchips . | . . . . Time . | . . . . Total Part Build Rating . | . . . . Part Studies Acquired . | . . . . Parts Repaired . | . . . . Time . | . . . . Parts Recycled . | . . . . Recycled Matter . | . . . . Retrieved Matter . | . . . . Retrieved Components 4 | . 4 . . Parts Scanalyzed . | . . . . Part Schematics Acquired . | . . . . Parts Damaged . | . . . . Bothacking | -11 -10 -10 -10 ------------ Run | Yrd Mat Min Sub Used RIF Installer . | . . . . Robots Hacked . | . . . . Non-combat . | . . . . Combat . | . . . . Robot Hacks Applied . | . . . . Relay Couplers Released . | . . . . Fabnet Peak Effective % . | . . . . Robots Rewired . | . . . . Allies Hacked . | . . . . Hacks Repelled . | . . . . Allies | -11 -10 -10 -10 -------- Run | Yrd Mat Min Sub Total Allies . | . . . . Largest Group . | . . . . Highest-Rated Group . | . . . . Highest-Rated Ally . | . . . . Total Orders . | . . . . Ally Attacks . | . . . . Total Damage . | . . . . Kills . | . . . . Allies Corrupted . | . . . . Allies Melted . | . . . . Intel | -11 -10 -10 -10 ------- Run | Yrd Mat Min Sub Active Infowar (turns) 96 | . 96 . . Sensors 96 | . 96 . . Robot Analysis Total . | . . . . Derelict Logs Recovered 2 | . . 1 1 Drone Launches . | . . . . Drone Recoveries . | . . . . Exploration | -11 -10 -10 -10 ------------- Run | Yrd Mat Min Sub Turns Passed 2355 | 65 1161 724 405 Spaces Moved 1464 | 48 653 496 267 Core 21 | 21 . . . Treads 641 | . 447 194 . Legs 802 | 27 206 302 267 Wheels . | . . . . Hover . | . . . . Flight . | . . . . Fastest Speed 50 | 50 120 120 120 Average Speed 137 | 101 147 135 120 Slowest Speed 190 | 150 190 160 190 Overloaded Moves . | . . . . Propulsion Burnouts . | . . . . Robots Hopped . | . . . . Potential Cave-ins . | . . . . Cave-ins Triggered . | . . . . Exploration Rate (%) 50 | 4 83 93 22 Regions Visited 3 Branch Regions 2 Pre-discovered Areas . | . . . . Known Exits Taken . | . . . . Unknown Exits Taken 3 | 1 1 1 . Scrap Searched 1 | . . 1 . Spaces Dug . | . . . . Terrain Destroyed 26 | . 18 . 8 Melee . | . . . . Projectile . | . . . . AOE 26 | . 18 . 8 Terrain Rammed . | . . . . Walls Destroyed . | . . . . Machines Disabled . | . . . . Actions | -11 -10 -10 -10 --------- Run | Yrd Mat Min Sub Total 1682 | 61 783 526 312 Wait 68 | . 59 5 4 Move 1461 | 47 652 495 267 Hop . | . . . . Pick Up 25 | 7 12 6 . Fast Attach 9 | 5 2 . 2 Attach 8 | 1 4 . 3 Detach . | . . . . Swap 13 | 1 9 3 . Drop 14 | . 6 5 3 Fire 79 | . 38 11 30 Melee . | . . . . Ram . | . . . . Kick 1 | . . 1 . Crush 1 | . 1 . . Escape Stasis . | . . . . Rewire . | . . . . Trap 3 | . . . 3 Miscellaneous . | . . . . Route ------- -11/Scrapyard -10/Materials (discovered 2 exits: *Mat / *Min) -10/Mines (discovered 3 exits: *Mat x2 / [*Sub]) -10/Subcaves History --------- Turn | Location | Event 51 | -11/Scrapyard | Discovered new exit (range 14) 66 | -11/Scrapyard | Entered Materials 324 | -10/Materials | Build established: Mutant 698 | -10/Materials | Discovered new exit (range 10) 1071 | -10/Materials | Discovered new exit (range 12) 1227 | -10/Materials | Entered Mines 1255 | -10/Mines | Identified exit to Materials 1483 | -10/Mines | Core integrity fell below 50% 1560 | -10/Mines | Found DCF Scrap (11 items) 1636 | -10/Mines | Found a hidden stash of uninstalled traps 1744 | -10/Mines | Discovered exit to Materials (range 8) 1941 | -10/Mines | Discovered new exit (range 6) 1951 | -10/Mines | Entered Subcaves 2143 | -10/Subcaves | Ambushed by swarm of Subdwellers 2145 | -10/Subcaves | Ambushed by Subdwellers from Twisted Machinery 2200 | -10/Subcaves | Lost 4 allies 2216 | -10/Subcaves | Lost 3 parts (3w) 2302 | -10/Subcaves | Core integrity fell below 20% 2356 | -10/Subcaves | Destroyed by D2-Q03(R) with Subdweller Machine Gun Last Messages --------------- 02189_ Sub. Optics fried. 02189_ Sub. Machine Gun fried. 02195_ Subatomizers dissect the Sub. Power Source. 02197_ 2W-OXZ(R) affixes Scrap Shield Fragment to Scrap Shield. 02238_ Acquired 15 matter. 02280_ Acquired Flamer. 02281_ Aluminum Leg destroyed. 02291_ Chain reaction triggered in Sub. Power Source. 02293_ EM Pulse Gun destroyed. 02303_ Acquired Sub. Machine Gun. 02321_ D2-Q03(R) suffers critical hit (Destroy). 02334_ D2-Q03(R) misfires. 02343_ Aluminum Leg destroyed. 02347_ D2-Q03(R) misfires. 02349_ Ion Engine destroyed. 02351_ Flamer destroyed. 02354_ A6-WN5(R) destroyed. Map ----- +----------------------------------------------------+ | ???????????????????????????? ##??????###?????? | | ????????????????????????????? ####### #?????? | | ???????????????????###????????# ## #??????? | | ???????????????##### ##???##### #???##### | | ???????????????# ##?## ## #?### | | ????????????????# ### ## # ### | | ???????????????## # # | | ???????????????# ?# " " ## ## | | ???????????#####" ## ## ### ## | | ???????????# # " ## ####? | | ???????????# " ## #???? | | ???????????# ##### #???? | | ???????????# #" ##??# #???? | | ???????????#??## ##???# #???? | | ???????????????# ####???# ####???? | | ???????????????## R##?????#### #??????? | | ????????????????# #????????## ##??????? | | ???????????????## #?????????# #???????? | | ???????????????# ##?????????# ???????? | | ???????????????# #??????????## ??????? | | ???????????????# ##??????????## ???????? | | ???????????????# ##???????????##??????? | | ???????????????# ! #???????????????????? | | ???????????????# ##???????????????????? | | ???????????????# #????????????????????? | | ???????????????## @ #????????????????????? | | ????????????????### & #????????????????????? | | ??????????????????# # *% #????????????????????? | | ??????????????????# # [ #????????????????????? | | ????????????????? ### #????????????????????? | | ??????????????? ?? #????????????????????? | | ??????????????## ?? ????????????????????? | | ???????????????# #?? ##???????????????????? | | ??????????????? ??? ????????????????????? | | ??????????????## ??? ????????????????????? | | ???????????????## ??? #???????????????????? | | ????????????????# ??? ???????????????????? | | ????????????????#??? ?????# ???????????????????? | | ???????????????????????????# ???????????????????? | | ???????????????????????????? ???????????????????? | | ????????????????????????????????????????????????? | | ????????????????????????????????????????????????? | | ????????????????????????????????????????????????? | | ????????????????????????????????????????????????? | | ????????????????????????????????????????????????? | | ????????????????????????????????????????????????? | | ????????????????????????????????????????????????? | | ????????????????????????????????????????????????? | | ????????????????????????????????????????????????? | | ????????????????????????????????????????????????? | +----------------------------------------------------+ Best States ------------- Heat Dissipation 25 Energy Generation 10 Energy Capacity 350 Matter Stores 300 Matter Capacity 300 Sight Range 16 Robot Scan Range 14 Terrain Scan Density 10 Additional Mass Support 6 Utility Shielding 33 Evasion (%) 55 Recoil Reduction 2 Item Schematics ----------------- None Robot Schematics ------------------ None Fabricated ------------ Nothing Repaired ---------- Nothing Studied --------- None Alien Tech Used ----------------- None Achievements -------------- None Challenges ------------ None Game ------ Seed NodePlasmaSuit Manual? 0 Play Time 00:24:50 Cumulative 22.1 hours Start 2026.09.18 @ 16:02:02 End 2026.09.18 @ 16:25:45 Sessions 1 Manual Loads 0 Difficulty Rogue Special Mode None Game No. 21 Rogue 21 Adventurer 0 Explorer 0 Win Type - Total 0 Types 0/0/0/0/0/0/0/0/0/0 Lore% 9 Gallery% 16 Achievement% 15 Wizard Run 0 Options --------- Layout 1 ASCII 0 Keyboard 1 Movement Vi Keybinds 0 Fullscreen 0 Font 28/SmallcapsGlow Map View 50x35 Zoom Use 0% Tactical HUD 1 Map Filters NONE Filters LOW_CONTRAST(13,24,33) Steam 0 RUN: 3afa2e2e-12f3-4763-ac0d-d6add285d8f4